Workbook

Sheet Hydrology
B3: HYDROLOGY CALCULATIONS FOR CONVEYANCE
B5: Time of concentration calculator | G5: Rational Method Flow Calculation Summary
B7: Method | G7: Drainage Area | H7: =SUM(C37:C40)*(1/43560) -> 0 | I7: ac.
G8: Rational C | H8: =D41 -> 
B9: Time of concentration inputs | G9: Intensity | I9: in/h | K9: Choose intensity based on time of concencentration
G10: Tc | H10: =D30 -> FALSE | I10: min | K10: NOAA Atlas 14 Precipitation Frequency Lookup
B11: Variable | C11: Description | D11: Value
B12: L | C12: Length of main channel | E12: ft | G12: Peak Flow, Q | H12: =H7*H8*H9 ->  | I12: cfs
B13: h | C13: relief along main channel | E13: ft
B14: S | C14: overland flow slope | E14: ft/ft
G15: Rational C Table
B16: Land use type for Kerby-Hatheway Equation only
E17: =IF(AND(C7="Kerby-Hatheway Equation",B17="")=TRUE, "Must enter Kerby roughness land use","") -> 
B19: Do not use if electing to use Kerby-Hatheway or Kirpich Equations
B20: TR-55 Time of Concentration Calculation | G20: TR-55 Time of Concentration Equations:
D21: Time (min) | G21: Time of concentration is the sum of travel times along each flow segment:
B22: Sheet Flow 1 | G22: Tc = Tt,sheet + Tt,shallow + Tt,channel
B23: Sheet Flow 2
B24: Shallow Concentrated Flow 1 | G24: For sheet flow less than 300 ft:
B25: Shallow Concentrated Flow 2
B26: Channel Flow 1
B27: Channel Flow 2
G28: T,sheet | H28: = travel time | J28: (hr)
G29: n | H29: = Manning's n
B30: tc | C30: Time of concentration | D30: =IF(C7="Kirpich Equation",0.0078*(((D12^3)/D13)^0.385), IF(C7="Kerby-Hatheway Equation", ((0.67*VLOOKUP(B17,'Calculations (Hidden From User)'!W9:X14,2,FALSE)*Hydrology!D12)/SQRT(Hydrology!D14))^0.467,IF(C7="TR-55",SUM(D22:D27)))) -> FALSE | E30: min | G30: L | H30: = Flow length | J30: (ft)
G31: P2 | H31: = 2-yr, 24-hr P | J31: (in.)
G32: S | H32: = land slope | J32: (ft/ft)
B34: Rational C Calculator | G34: For shallow concentrated flow:
B36: Area ID | C36: Land use area (sf) | D36: Raitonal C
B37: 1 | G37: For unpaved shallow flow | R37: =(C37*D37) -> 0
B38: 2 | R38: =(C38*D38) -> 0
B39: 3 | G39: For channelized flow: | R39: 0
B40: 4 | R40: 0
C41: Area-weighted composite C | D41: =SUM(R37:R40)/SUM(C37:C40) -> 
G43: Solve for velocity using Manning's equation:

Sheet Swale Design
B3: SWALE DESIGN INPUTS | N3: COVER AND FLOW DYNAMICS | AB3: Q | AC3: =Hydrology!H7*Hydrology!H8*1 -> 
AB4: n | AC4: 0.35
N5: Description | O5: Value
B6: Swale Geometry | G6: Comments | N6: Underlying soil type
B7: Variable | C7: Description | D7: Value | N7: Swale Material | AB7: LEFT SIDE | AC7: =AC3*AC4*(1/(1.486*SQRT(D11))) -> 
B8: wb | C8: Bottom Width | E8: ft | N8: Material | AB8: RIGHT SIDE | AC8: =((($D$8*$D$18)+($D$9*($D$18^2)))^(5/3))*((($D$8*$D$18)+(2*$D$18*SQRT(($D$9^2)+1)))^(-2/3)) -> 0
B9: z | C9: Side slope (e:H) | E9: ft/ft | AB9: Squared Error | AC9: =(AC7-AC8)^2 ->  | AF9: 0
B10: L | C10: Swale Length | E10: ft
B11: S | C11: Longitudinal Slope | E11: ft/ft
B12: G | C12: Grass Height | E12: in | N12: Manning's n (WQ flow depth) | P12: 0.35 | R12: Manning's n Nomograph
B13: F | C13: Freeboard | E13: ft | N13: Manning's n (flood conveyance) | P13: 0.022
B14: H | C14: Swale depth | E14: ft
B15: ymax | C15: Flow depth (conveyance storm) | E15: ft | G15: =IF(D15<D18,"Cannot have conveyance flow depth < WQ flow depth","") -> Cannot have conveyance flow depth < WQ flow depth | O15: Hydraulic Radius (ft) | P15: XS Area (sf)
B17: wt | C17: Top width | D17: =(2*D9*D14)+D8 -> 0 | E17: ft | N17: Water Quality Flow | O17: =P17/($D$8+2*SQRT(($D$18^2)+($D$9*$D$18)^2)) -> 0 | P17: =(((2*D18*D9)+(D8))+D8)*0.5*D18 -> 0
B18: yWQ | C18: Depth of Flow (WQ) | D18: 0.2877850472 | E18: ft | G18: =IF(D18*12>D12,"WARNING: Flow Depth Exceeds Grass Height. Re-design to meet flow height criterion","Depth check: OK") -> WARNING: Flow Depth Exceeds Grass Height. Re-design to meet flow height criterion | N18: Flood Conveyance Flow | O18: =P18/($D$8+2*SQRT(($D$15^2)+($D$9*$D$15)^2)) ->  | P18: =(D8+(2*D9*D15+D8))*0.5*D15 -> 0
G21: =IF(OR(Hydrology!H12="",Hydrology!H12=0)=TRUE,"Error: Please Calculate Peak Flow","") ->  | O21: Water Quality | P21: Max Allowable | Q21: Flow Conveyance | R21: Max Allowable
U22: USDA Soil Texture Classification Triangle
N23: Velocity (ft/s) | O23: =(1.4859/P12)*(((0.5*('Swale Design'!$D$8+(2*'Swale Design'!$D$9*'Swale Design'!$D$18+'Swale Design'!$D$8))*'Swale Design'!$D$18)/('Swale Design'!$D$8+(2*SQRT(('Swale Design'!$D$18^2)+(('Swale Design'!$D$9*'Swale Design'!$D$18)^2)))))^(2/3))*SQRT('Swale Design'!$D$11) -> 0 | P23: =VLOOKUP($O$8,'Calculations (Hidden From User)'!$AG$8:$AI$33, 2, FALSE) ->  | Q23: =(1.4859/P13)*(((0.5*((2*D8)+(2*D9*D15))*D15)/(D8+2*SQRT((D15^2)+((D9*D15)^2))))^(2/3))*(SQRT(D11)) ->  | R23: =VLOOKUP($O$8,'Calculations (Hidden From User)'!$AG$8:$AI$33, 2, FALSE) -> 
N24: Shear stress (lb/ft2) | O24: =62.4*$D$18*$D$11 -> 0 | P24: =VLOOKUP($O$8,'Calculations (Hidden From User)'!$AG$8:$AI$33, 3, FALSE) ->  | Q24: =62.4*'Swale Design'!$D$14*'Swale Design'!$D$11 -> 0 | R24: =VLOOKUP($O$8,'Calculations (Hidden From User)'!$AG$8:$AI$33, 3, FALSE) -> 
N27: Max Q (from Manning's) | O27: =Q23*P18 ->  | P27: cfs
N28: Q(peak) | O28: =Hydrology!H12 ->  | P28: cfs | Q28: =O27/O28 ->  | R28: Current Safety Factor
B35: Swale Cross-Section Diagram

Sheet Deletic Method from Ryan (hidden)
B2: Accumulated Percentage (v/v) | E2: Deletic Method Settling Prediction | L2: TSS removal for water quality swale of 25 ft length | Q2: TSS removal for water quality swale of 25 ft length | W2: TSS Removal Efficiency for 2% slope and 5:1 Side Slopes | AF2: TSS removal for water quality swale of 25 ft length
B3: Channel (um) | C3: Average Event | E3: PSD: d_ | F3: Size (m) | G3: Vs (m/s) | H3: Nf | I3: Trs | J3: Trs*Mass | L3: Slope (%) | M3: Side Slope | N3: Flow Depth (cm) | O3: TSS Removal Efficiency (%) | Q3: Slope (%) | R3: Side Slope | S3: Flow Depth (ft) | T3: TSS Removal Efficiency (%) | V3: 7.5 | AF3: Slope (%) | AG3: Side Slope | AH3: Flow Depth (ft) | AI3: TSS Removal Efficiency (%)
B4: 0.03999 | C4: 99.99874338 | E4: 100 | F4: 0.002 | G4: =$F$15/(18*$F$14)*($F$16-$F$17)*F4^2 -> 3.586161011 | H4: =$F$18*G4/($F$21*$F$23) -> 61862.79403 | I4: =H4^0.69/(H4^0.69+4.95) -> 0.9975596187 | J4: - | L4: 0.5 | M4: 5:1 | N4: 7 | O4: 60.7 | Q4: 0.5 | R4: 8:1 | V4: 15 | AF4: 0.5 | AG4: 3:1
B5: 0.0439 | C5: 99.99809224 | E5: 90 | F5: 0.0003930539637 | G5: =$F$15/(18*$F$14)*($F$16-$F$17)*F5^2 -> 0.1385077753 | H5: 2389.317699 | I5: 0.9774223634 | J5: =(E4-E5)*AVERAGE(I4:I5) -> 9.87490991 | L5: 1 | M5: 5:1 | N5: 6.1 | O5: 59.3 | Q5: 1 | R5: 8:1 | V5: 30 | AF5: 1 | AG5: 3:1
B6: 0.048191 | C6: 99.99721541 | E6: 75 | F6: 0.0001445216178 | G6: 0.01872558621 | H6: 323.0242811 | I6: 0.9158494389 | J6: 14.19953852 | L6: 1.5 | M6: 5:1 | N6: 5.8 | O6: 58.5 | Q6: 1.5 | R6: 8:1 | V6: 60 | AF6: 1.5 | AG6: 3:1
B7: 0.052903 | C7: 99.99561233 | E7: 50 | F7: 5.566256244e-05 | G7: 0.002777769365 | H7: 47.91769626 | I7: 0.7447028253 | J7: 20.7569033 | L7: 2 | M7: 5:1 | N7: 5.5 | O7: 57.9 | Q7: 2 | R7: 8:1 | V7: 90 | AF7: 2 | AG7: 3:1
B8: 0.058075 | C8: 99.99211327 | E8: 25 | F8: 3.017585003e-05 | G8: 0.0008163733495 | H8: 14.08278552 | I8: 0.5561694352 | J8: 16.26090326 | L8: 3 | M8: 5:1 | N8: 4.9 | O8: 57.1 | Q8: 3 | R8: 8:1 | V8: 152.5 | AF8: 3 | AG8: 3:1
B9: 0.063753 | C9: 99.98520215 | E9: 10 | F9: 1.463654014e-05 | G9: 0.0001920643008 | H9: 3.313190413 | I9: 0.3158675465 | J9: 6.540277362 | L9: 4 | M9: 5:1 | N9: 4.9 | O9: 56.4 | Q9: 4 | R9: 8:1 | V9: 305 | AF9: 4 | AG9: 3:1
B10: 0.069985 | C10: 99.97336234 | E10: 0 | F10: 3.999e-08 | G10: 1.433747262e-09 | H10: 2.47327466e-05 | I10: 0.0001338734874 | J10: 1.5800071 | L10: 5 | M10: 5:1 | N10: 4.6 | O10: 56 | Q10: 5 | R10: 8:1 | AF10: 5 | AG10: 3:1
B11: 0.076827 | C11: 99.95607674 | I11: Cumulative Removal Efficiency = | J11: =SUM(J5:J10) -> 69.21253945 | L11: 7.5 | M11: 5:1 | N11: 4 | O11: 55.2 | Q11: 7.5 | R11: 8:1 | AF11: 7.5 | AG11: 3:1
B12: 0.084338 | C12: 99.93368792 | L12: 10 | M12: 5:1 | N12: 4 | O12: 54.6 | Q12: 10 | R12: 8:1 | AF12: 10 | AG12: 3:1
B13: 0.092584 | C13: 99.90628334 | E13: Constants | H13: Assume 6" grass height
B14: 0.10164 | C14: 99.87364733 | E14: μ = | F14: 0.001002 | H14: Depth of Flow: | L14: TSS removal for water quality swale of 50 ft length | Q14: TSS removal for water quality swale of 50 ft length | AF14: TSS removal for water quality swale of 50 ft length
B15: 0.11157 | C15: 99.83570182 | E15: g = | F15: 9.8 | H15: 0.5 | I15: ft | L15: Slope (%) | M15: Side Slope | N15: Flow Depth (cm) | O15: TSS Removal Efficiency (%) | Q15: Slope (%) | R15: Side Slope | S15: Flow Depth (ft) | T15: TSS Removal Efficiency (%) | AF15: Slope (%) | AG15: Side Slope | AH15: Flow Depth (ft) | AI15: TSS Removal Efficiency (%)
B16: 0.12248 | C16: 99.79282412 | E16: ρs = | F16: 2650 | L16: 0.5 | M16: 5:1 | N16: 9 | O16: 63.4 | Q16: 0.5 | R16: 8:1 | W16: Removal Efficiency for 50 ft swale length | AF16: 0.5 | AG16: 3:1
B17: 0.13445 | C17: 99.74505191 | E17: ρ = | F17: 1000 | L17: 1 | M17: 5:1 | N17: 8 | O17: 62.1 | Q17: 1 | R17: 8:1 | AF17: 1 | AG17: 3:1
B18: 0.1476 | C18: 99.69252609 | E18: X = | F18: 304.8 | G18: m | H18: <----Length of Swale | L18: 1.5 | M18: 5:1 | N18: 7.3 | O18: 61.3 | Q18: 1.5 | R18: 8:1 | AF18: 1.5 | AG18: 3:1
B19: 0.16203 | C19: 99.63528586 | E19: S = | F19: 10 | G19: % | L19: 2 | M19: 5:1 | N19: 7 | O19: 60.7 | Q19: 2 | R19: 8:1 | AF19: 2 | AG19: 3:1
B20: 0.17787 | C20: 99.57328709 | E20: n = | F20: 0.35 | L20: 3 | M20: 5:1 | N20: 6.4 | O20: 59.9 | Q20: 3 | R20: 8:1 | AF20: 3 | AG20: 3:1
B21: 0.19526 | C21: 99.50639637 | E21: d = | F21: =I34 -> 0.1589548957 | G21: m | L21: 4 | M21: 5:1 | N21: 6.1 | O21: 59.3 | Q21: 4 | R21: 8:1 | AF21: 4 | AG21: 3:1
B22: 0.21435 | C22: 99.4339904 | E22: A= | F22: =5*F21^2 -> 0.1263332944 | G22: m2 | H22: <----assuming 5:1 side slopes | L22: 5 | M22: 5:1 | N22: 5.8 | O22: 58.8 | Q22: 5 | R22: 8:1 | AF22: 5 | AG22: 3:1
B23: 0.2353 | C23: 99.3557226 | E23: V= | F23: =F28/1000/F22 -> 0.1111581494 | G23: m/s | L23: 7.5 | M23: 5:1 | N23: 5.5 | O23: 58 | Q23: 7.5 | R23: 8:1 | AF23: 7.5 | AG23: 3:1
B24: 0.25831 | C24: 99.27129405 | L24: 10 | M24: 5:1 | N24: 5.2 | O24: 57.4 | Q24: 10 | R24: 8:1 | AF24: 10 | AG24: 3:1
B25: 0.28356 | C25: 99.18055521 | F25: Qp (cfs) | G25: C | H25: I (in/hr) | I25: A (acres)
B26: 0.31128 | C26: 99.08401517 | F26: =G26*H26*I26 -> 0.4958677686 | G26: 0.9 | H26: 1 | I26: =F18*24/0.3048/43560 -> 0.5509641873 | L26: TSS removal for water quality swale of 100 ft length | Q26: TSS removal for water quality swale of 100 ft length | AF26: TSS removal for water quality swale of 100 ft length
B27: 0.34172 | C27: 98.98228549 | F27: Qp (L/s) | L27: Slope (%) | M27: Side Slope | N27: Flow Depth (cm) | O27: TSS Removal Efficiency (%) | Q27: Slope (%) | R27: Side Slope | S27: Flow Depth (ft) | T27: TSS Removal Efficiency (%) | AF27: Slope (%) | AG27: Side Slope | AH27: Flow Depth (ft) | AI27: TSS Removal Efficiency (%)
B28: 0.37512 | C28: 98.87648756 | F28: =F26*28.32 -> 14.04297521 | L28: 0.5 | M28: 5:1 | N28: 11.9 | O28: 66.2 | Q28: 0.5 | R28: 8:1 | S28: 0.32 | T28: 69.1 | AF28: 0.5 | AG28: 3:1
B29: 0.4118 | C29: 98.76800806 | L29: 1 | M29: 5:1 | N29: 10.4 | O29: 64.8 | Q29: 1 | R29: 8:1 | S29: 0.28 | T29: 67.8 | AF29: 1 | AG29: 3:1
B30: 0.45206 | C30: 98.65783882 | F30: Q=1/n*s^(1/2)*A*R^(2/3) | L30: 1.5 | M30: 5:1 | N30: 9.4 | O30: 64 | Q30: 1.5 | R30: 8:1 | S30: 0.26 | T30: 67 | W30: Removal Efficiency as a function of length | AF30: 1.5 | AG30: 3:1
B31: 0.49625 | C31: 98.54737838 | F31: =F26*F20/(F19/100)^(0.5) -> 0.5488250485 | G31: =G34*F34^2*(G34*F34/(2*(1+G34^2)^(1/2)))^(2/3) -> 0.5478093195 | L31: 2 | M31: 5:1 | N31: 9.1 | O31: 63.5 | Q31: 2 | R31: 8:1 | S31: 0.25 | T31: 66.5 | AF31: 2 | AG31: 3:1
B32: 0.54477 | C32: 98.43738787 | L32: 3 | M32: 5:1 | N32: 8.2 | O32: 62.7 | Q32: 3 | R32: 8:1 | S32: 0.23 | T32: 65.7 | AF32: 3 | AG32: 3:1
B33: 0.59803 | C33: 98.32844165 | F33: Flow Depth (ft) | G33: Side Slope | I33: Flow Depth (m) | L33: 4 | M33: 5:1 | N33: 7.9 | O33: 62.1 | Q33: 4 | R33: 8:1 | S33: 0.22 | T33: 65.2 | AF33: 4 | AG33: 3:1
B34: 0.65649 | C34: 98.2202934 | F34: 0.5215055634 | G34: 5 | H34: :1 | I34: =F34*0.3048 -> 0.1589548957 | L34: 5 | M34: 5:1 | N34: 7.6 | O34: 61.6 | Q34: 5 | R34: 8:1 | S34: 0.21 | T34: 64.7 | AF34: 5 | AG34: 3:1
B35: 0.72068 | C35: 98.11234736 | L35: 7.5 | M35: 5:1 | N35: 7 | O35: 60.9 | Q35: 7.5 | R35: 8:1 | S35: 0.19 | T35: 63.9 | AF35: 7.5 | AG35: 3:1
B36: 0.79113 | C36: 98.00359573 | L36: 10 | M36: 5:1 | N36: 6.7 | O36: 60.3 | Q36: 10 | R36: 8:1 | S36: 0.18 | T36: 63.4 | AF36: 10 | AG36: 3:1
B37: 0.86848 | C37: 97.89299092
B38: 0.95338 | C38: 97.77917975 | L38: TSS removal for water quality swale of 200 ft length | Q38: TSS removal for water quality swale of 200 ft length | AF38: TSS removal for water quality swale of 200 ft length
B39: 1.0466 | C39: 97.66080932 | L39: Slope (%) | M39: Side Slope | N39: Flow Depth (cm) | O39: TSS Removal Efficiency (%) | Q39: Slope (%) | R39: Side Slope | S39: Flow Depth (ft) | T39: TSS Removal Efficiency (%) | AF39: Slope (%) | AG39: Side Slope | AH39: Flow Depth (ft) | AI39: TSS Removal Efficiency (%)
B40: 1.1489 | C40: 97.53742034 | L40: 0.5 | M40: 5:1 | N40: 15.2 | O40: 68.8 | Q40: 0.5 | R40: 8:1 | AF40: 0.5 | AG40: 3:1
B41: 1.2612 | C41: 97.40861367 | L41: 1 | M41: 5:1 | N41: 13.4 | O41: 67.5 | Q41: 1 | R41: 8:1 | AF41: 1 | AG41: 3:1
B42: 1.3845 | C42: 97.27419764 | L42: 1.5 | M42: 5:1 | N42: 12.5 | O42: 66.7 | Q42: 1.5 | R42: 8:1 | AF42: 1.5 | AG42: 3:1
B43: 1.5199 | C43: 97.13480724 | L43: 2 | M43: 5:1 | N43: 11.9 | O43: 66.2 | Q43: 2 | R43: 8:1 | W43: Effect of Side Slopes on removal efficiency | AF43: 2 | AG43: 3:1
B44: 1.6685 | C44: 96.99167163 | L44: 3 | M44: 5:1 | N44: 11 | O44: 65.4 | Q44: 3 | R44: 8:1 | AF44: 3 | AG44: 3:1
B45: 1.8316 | C45: 96.84543045 | L45: 4 | M45: 5:1 | N45: 10.4 | O45: 64.9 | Q45: 4 | R45: 8:1 | AF45: 4 | AG45: 3:1
B46: 2.0107 | C46: 96.69759472 | L46: 5 | M46: 5:1 | N46: 9.8 | O46: 64.4 | Q46: 5 | R46: 8:1 | AF46: 5 | AG46: 3:1
B47: 2.2072 | C47: 96.54792087 | L47: 7.5 | M47: 5:1 | N47: 9.1 | O47: 63.6 | Q47: 7.5 | R47: 8:1 | AF47: 7.5 | AG47: 3:1
B48: 2.423 | C48: 96.39606613 | L48: 10 | M48: 5:1 | N48: 8.5 | O48: 63 | Q48: 10 | R48: 8:1 | AF48: 10 | AG48: 3:1
B49: 2.6599 | C49: 96.23947635
B50: 2.92 | C50: 96.07487552 | L50: TSS removal for water quality swale of 300 ft length | Q50: TSS removal for water quality swale of 300 ft length | AF50: TSS removal for water quality swale of 300 ft length
B51: 3.2054 | C51: 95.89727805 | L51: Slope (%) | M51: Side Slope | N51: Flow Depth (cm) | O51: TSS Removal Efficiency (%) | Q51: Slope (%) | R51: Side Slope | S51: Flow Depth (ft) | T51: TSS Removal Efficiency (%) | AF51: Slope (%) | AG51: Side Slope | AH51: Flow Depth (ft) | AI51: TSS Removal Efficiency (%)
B52: 3.5188 | C52: 95.70205187 | L52: 0.5 | M52: 5:1 | N52: 17.7 | O52: 70.3 | Q52: 0.5 | R52: 8:1 | S52: 0.58 | T52: 68 | AF52: 0.5 | AG52: 3:1
B53: 3.8628 | C53: 95.48361896 | L53: 1 | M53: 5:1 | N53: 15.5 | O53: 69 | Q53: 1 | R53: 8:1 | S53: 0.51 | T53: 66.7 | AF53: 1 | AG53: 3:1
B54: 4.2405 | C54: 95.23718284 | L54: 1.5 | M54: 5:1 | N54: 14.3 | O54: 68.3 | Q54: 1.5 | R54: 8:1 | S54: 0.47 | T54: 66 | AF54: 1.5 | AG54: 3:1
B55: 4.6551 | C55: 94.95876457 | L55: 2 | M55: 5:1 | N55: 13.7 | O55: 67.7 | Q55: 2 | R55: 8:1 | T55: 62.3 | AF55: 2 | AG55: 3:1
B56: 5.1102 | C56: 94.64534834 | L56: 3 | M56: 5:1 | N56: 12.5 | O56: 67 | Q56: 3 | R56: 8:1 | AF56: 3 | AG56: 3:1
B57: 5.6098 | C57: 94.29521887 | L57: 4 | M57: 5:1 | N57: 11.9 | O57: 66.4 | Q57: 4 | R57: 8:1 | W57: Effect of Side Slopes on removal efficiency | AF57: 4 | AG57: 3:1
B58: 6.1582 | C58: 93.90536901 | L58: 5 | M58: 5:1 | N58: 11.6 | O58: 66 | Q58: 5 | R58: 8:1 | AF58: 5 | AG58: 3:1
B59: 6.7603 | C59: 93.47208534 | L59: 7.5 | M59: 5:1 | N59: 10.7 | O59: 65.2 | Q59: 7.5 | R59: 8:1 | AF59: 7.5 | AG59: 3:1
B60: 7.4212 | C60: 92.99029901 | L60: 10 | M60: 5:1 | N60: 10 | O60: 64.6 | Q60: 10 | R60: 8:1 | S60: 0.33 | T60: 62.2 | AF60: 10 | AG60: 3:1
B61: 8.1467 | C61: 92.45319265
B62: 8.9432 | C62: 91.8512323 | L62: TSS removal for water quality swale of 500 ft length | Q62: TSS removal for water quality swale of 500 ft length | AF62: TSS removal for water quality swale of 500 ft length
B63: 9.8175 | C63: 91.17461486 | L63: Slope (%) | M63: Side Slope | N63: Flow Depth (cm) | O63: TSS Removal Efficiency | Q63: Slope (%) | R63: Side Slope | S63: Flow Depth (ft) | T63: TSS Removal Efficiency | AF63: Slope (%) | AG63: Side Slope | AH63: Flow Depth (ft) | AI63: TSS Removal Efficiency
B64: 10.777 | C64: 90.41309152 | L64: 0.5 | M64: 5:1 | N64: 21.3 | O64: 72.1 | Q64: 0.5 | R64: 8:1 | AF64: 0.5 | AG64: 3:1
B65: 11.831 | C65: 89.55684543 | L65: 1 | M65: 5:1 | N65: 18.9 | O65: 70.9 | Q65: 1 | R65: 8:1 | AF65: 1 | AG65: 3:1
B66: 12.988 | C66: 88.59626736 | L66: 1.5 | M66: 5:1 | N66: 17.4 | O66: 70.1 | Q66: 1.5 | R66: 8:1 | AF66: 1.5 | AG66: 3:1
B67: 14.257 | C67: 87.52551732 | L67: 2 | M67: 5:1 | N67: 16.5 | O67: 69.6 | Q67: 2 | R67: 8:1 | AF67: 2 | AG67: 3:1
B68: 15.651 | C68: 86.33822038 | L68: 3 | M68: 5:1 | N68: 15.2 | O68: 68.9 | Q68: 3 | R68: 8:1 | AF68: 3 | AG68: 3:1
B69: 17.181 | C69: 85.02329614 | L69: 4 | M69: 5:1 | N69: 14.6 | O69: 68.3 | Q69: 4 | R69: 8:1 | AF69: 4 | AG69: 3:1
B70: 18.861 | C70: 83.55893821 | L70: 5 | M70: 5:1 | N70: 14 | O70: 67.9 | Q70: 5 | R70: 8:1 | AF70: 5 | AG70: 3:1
B71: 20.705 | C71: 81.90999104 | L71: 7.5 | M71: 5:1 | N71: 12.8 | O71: 67.2 | Q71: 7.5 | R71: 8:1 | AF71: 7.5 | AG71: 3:1
B72: 22.729 | C72: 80.03438545 | L72: 10 | M72: 5:1 | N72: 12.2 | O72: 66.6 | Q72: 10 | R72: 8:1 | AF72: 10 | AG72: 3:1
B73: 24.951 | C73: 77.89828114
B74: 27.391 | C74: 75.48743615 | L74: TSS removal for water quality swale of 1000 ft length | Q74: TSS removal for water quality swale of 1000 ft length | AF74: TSS removal for water quality swale of 1000 ft length
B75: 30.068 | C75: 72.80527595 | L75: Slope (%) | M75: Side Slope | N75: Flow Depth (cm) | O75: TSS Removal Efficiency | Q75: Slope (%) | R75: Side Slope | S75: Flow Depth (ft) | T75: TSS Removal Efficiency | AF75: Slope (%) | AG75: Side Slope | AH75: Flow Depth (ft) | AI75: TSS Removal Efficiency
B76: 33.008 | C76: 69.85273052 | L76: 0.5 | M76: 5:1 | N76: 28 | O76: 74.4 | Q76: 0.5 | R76: 8:1 | AF76: 0.5 | AG76: 3:1
B77: 36.235 | C77: 66.63104739 | L77: 1 | M77: 5:1 | N77: 24.4 | O77: 73.3 | Q77: 1 | R77: 8:1 | AF77: 1 | AG77: 3:1
B78: 39.778 | C78: 63.17443491 | L78: 1.5 | M78: 5:1 | N78: 22.9 | O78: 72.6 | Q78: 1.5 | R78: 8:1 | AF78: 1.5 | AG78: 3:1
B79: 43.667 | C79: 59.56107877 | L79: 2 | M79: 5:1 | N79: 21.3 | O79: 72.1 | Q79: 2 | R79: 8:1 | AF79: 2 | AG79: 3:1
B80: 47.936 | C80: 55.83978212 | L80: 3 | M80: 5:1 | N80: 19.8 | O80: 71.4 | Q80: 3 | R80: 8:1 | AF80: 3 | AG80: 3:1
B81: 52.622 | C81: 52.00690286 | L81: 4 | M81: 5:1 | N81: 18.9 | O81: 70.9 | Q81: 4 | R81: 8:1 | AF81: 4 | AG81: 3:1
B82: 57.767 | C82: 48.07177878 | L82: 5 | M82: 5:1 | N82: 18 | O82: 70.5 | Q82: 5 | R82: 8:1 | AF82: 5 | AG82: 3:1
B83: 63.414 | C83: 44.13115471 | L83: 7.5 | M83: 5:1 | N83: 16.8 | O83: 69.7 | Q83: 7.5 | R83: 8:1 | AF83: 7.5 | AG83: 3:1
B84: 69.614 | C84: 40.34179601 | L84: 10 | M84: 5:1 | N84: 15.8 | O84: 69.2 | Q84: 10 | R84: 8:1 | AF84: 10 | AG84: 3:1
B85: 76.42 | C85: 36.80643138
B86: 83.891 | C86: 33.55391397
B87: 92.092 | C87: 30.57787693
B88: 101.1 | C88: 27.85560454
B89: 110.98 | C89: 25.34290506
B90: 121.83 | C90: 22.98917719
B91: 133.74 | C91: 20.76650956
B92: 146.81 | C92: 18.68581391
B93: 161.17 | C93: 16.77766828
B94: 176.92 | C94: 15.04465446
B95: 194.22 | C95: 13.5109636
B96: 213.21 | C96: 12.20339864
B97: 234.05 | C97: 11.14067585
B98: 256.94 | C98: 10.32910689
B99: 282.06 | C99: 9.723074435
B100: 309.63 | C100: 9.242670171
B101: 339.9 | C101: 8.815850852
B102: 373.13 | C102: 8.375484096
B103: 409.61 | C103: 7.855921581
B104: 449.66 | C104: 7.200617544
B105: 493.62 | C105: 6.435206452
B106: 541.88 | C106: 5.711292365
B107: 594.85 | C107: 5.083032671
B108: 653.01 | C108: 4.518355969
B109: 716.85 | C109: 3.98258369
B110: 786.93 | C110: 3.433890316
B111: 863.87 | C111: 2.856012276
B112: 948.32 | C112: 2.264664221
B113: 1041 | C113: 1.69829081
B114: 1142.8 | C114: 1.222862422
B115: 1254.5 | C115: 0.8774561572
B116: 1377.2 | C116: 0.6417839483
B117: 1511.8 | C117: 0.4557306426
B118: 1659.6 | C118: 0.2904058056
B119: 1821.9 | C119: 0.1381283
B120: 2000

Sheet Rational C Ref.
B2: Rational Coefficient

Sheet Manning's n
B2: Manning's roughness (n) for Open Channel Flow
B5: USE THE FOLLOWING NOMOGRAPH TO DETERMINE MANNING'S N FOR AVERAGE STANDS OF GRASS, BASED ON HYDRAULIC RADIUS AND CHANNEL SLOPE
B6: Source: Federal Highway Adminstration (FHWA), Design of Roadside Channels with Flexible Linings. Hydraulic Engineering Circular Number 15 (HEC-15), 3rd ed.
B7: From your design:
B8: Hydraulic Radius, R (ft) | E8: ='Swale Design'!O18 -> 
B9: Channel Slope (ft/ft) | E9: ='Swale Design'!D11 -> 0
C41: Nomograph for Manning's n versus hydraulic radius, R, for Class D Vegetation
C42: Class D Vegetation: "Uncut grass, good to excellent stand, average of 3.6 to 6 inches tall, or cut grass, good to very good stand, 2.4 inches tall

Sheet Output
B3: OUTPUT SHEET
B5: DESIGN SUMMARY TABLE
B8: Hydrology
B10: Drainage area (ac.) | E10: =Hydrology!H7 -> 0
B11: Design Q (WQ, cfs) | E11: =1*Hydrology!H7*Hydrology!H8 -> 
B12: Design Q (Flow conveyance, cfs) | E12: =Hydrology!H12 -> 
B13: Q maximum (cfs) | E13: ='Swale Design'!O27 -> 
B14: Does conveyance swale handle design Q? | E14: =IF(E13>=E12,"YES","NO") -> 
B17: Swale Properties | G17: Meets Current NCDENR Design Criteria?
G18: Curb Outlet | H18: "For-Credit" | I18: Conveyance
B19: Length (ft) | E19: ='Swale Design'!D10 -> 0 | G19: =IF(E19>=100,"X","") ->  | H19: =IF(E19>=150,"X","") -> 
B20: Bottom width | E20: ='Swale Design'!D8 -> 0
B21: Side slopes (e:H) | E21: ='Swale Design'!D9 -> 0 | G21: =IF($E$21>=5,"X","") ->  | H21: =IF($E$21>=5,"X","") ->  | I21: =IF(E21>=3,"X","") -> 
B22: Longitudinal slope (ft/ft) | E22: ='Swale Design'!D11 -> 0 | G22: =IF($E$22<=0.05,"X","") -> X | H22: =IF($E$22<=0.05,"X","") -> X | I22: =IF($E$22<=0.05,"X","") -> X
B23: WQ depth (ft) | E23: ='Swale Design'!D18 -> 0.2877850472
B24: Flow conveyance depth (ft) | E24: ='Swale Design'!D15 -> 0
B25: Top width (ft) | E25: ='Swale Design'!D17 -> 0
B26: Freeboard (ft) | E26: ='Swale Design'!D13 -> 0 | G26: =IF($E$26>=0.5,"X","") ->  | H26: =IF($E$26>=0.5,"X","") ->  | I26: =IF($E$26>=0.5,"X","") -> 
B27: Max velocity (within WQ area) | E27: ='Swale Design'!O23 -> 0 | G27: =IF(G39="YES","X","") ->  | H27: =IF(AND(E27<=1,G38="YES")=TRUE,"X","") ->  | I27: =IF(G39="YES","X","") -> 
B28: Underlying soil type | E28: ='Swale Design'!O6 -> 0
B31: Cumulative Sediment Removal Efficiency | E31: =IF('Swale Design'!O6="Sandy loam",'Calculations (Hidden From User)'!G12, IF('Swale Design'!O6="Silt loam", 'Calculations (Hidden From User)'!N12,)) -> 0
B36: Hydraulic Design
G37: v < vmax? | H37: τ < τmax?
B38: Water Quality Design Flow | E38: ='Swale Design'!O8 -> 0 | G38: =IF('Swale Design'!P23>='Swale Design'!O23,"YES","NO") ->  | H38: =IF('Swale Design'!P24>='Swale Design'!O24,"YES","NO") -> 
B39: Conveyance-Only Design Flow | E39: ='Swale Design'!O8 -> 0 | G39: =IF('Swale Design'!R23>='Swale Design'!Q23,"YES","NO") ->  | H39: =IF('Swale Design'!R24>='Swale Design'!Q24,"YES","NO") -> 

Sheet Calculations (Hidden From User) (hidden)
B2: Sandy loam | I2: Silt loam
B3: Deletic Method Settling Prediction | I3: Deletic Method Settling Prediction | S3: Sandy loam | W3: Kirpich Equation
A4: d (mm) | B4: PSD: d_ | C4: Median Size (m) | D4: Vs (m/s) | E4: Nf | F4: Trs | G4: Trs*Mass | H4: d (mm) | I4: PSD: d_ | J4: Median Size (m) | K4: Vs (m/s) | L4: Nf | M4: Trs | N4: Trs*Mass | S4: Silt loam | W4: Kerby-Hatheway Equation
A5: =C5*1000 -> 2 | B5: 100 | C5: 0.002 | D5: =$C$34/(18*$C$33)*($C$35-$C$36)*C5^2 -> 3.586161011 | E5: =$E$22*D5/($E$31*$E$32) ->  | F5: =E5^0.69/(E5^0.69+4.95) ->  | G5: - | H5: =J5*1000 -> 2 | I5: 100 | J5: 0.002 | K5: =$C$34/(18*$C$33)*($C$35-$C$36)*J5^2 -> 3.586161011 | L5: =$E$22*K5/($E$31*$E$32) ->  | M5: =L5^0.69/(L5^0.69+4.95) ->  | N5: - | W5: TR-55
A6: =C6*1000 -> 0.35805 | B6: 90 | C6: 0.00035805 | D6: =$C$34/(18*$C$33)*($C$35-$C$36)*C6^2 -> 0.1149362833 | E6: =$E$22*D6/($E$31*$E$32) ->  | F6: =E6^0.69/(E6^0.69+4.95) ->  | G6: =(B5-B6)*AVERAGE(F5:F6) ->  | H6: =J6*1000 -> 0.25 | I6: 90 | J6: =0.25/1000 -> 0.00025 | K6: =$C$34/(18*$C$33)*($C$35-$C$36)*J6^2 -> 0.0560337658 | M6: =L6^0.69/(L6^0.69+4.95) ->  | N6: =(I5-I6)*AVERAGE(M5:M6) -> 
A7: 0.13165 | B7: 75 | C7: 0.00013165 | D7: 0.01553858687 | E7: =$E$22*D7/($E$31*$E$32) ->  | F7: =E7^0.69/(E7^0.69+4.95) ->  | H7: 0.055 | I7: 75 | J7: =0.055/1000 -> 5.5e-05 | K7: 0.002712034265 | M7: =L7^0.69/(L7^0.69+4.95) ->  | AH7: LL vmax | AI7: tallow
A8: 0.05071 | B8: 50 | C8: 5.071e-05 | D8: 0.002305456936 | H8: 0.025 | I8: 50 | J8: =0.025/1000 -> 2.5e-05 | K8: 0.000560337658 | L8: =$E$22*K8/($E$31*$E$32) ->  | W8: Kerby Roughness Parameter | AA8: Lining Type | AB8: =AA9 -> Vegetation | AC8: =AA10 -> Rolled_Erosion_Control_Products | AD8: =AA11 -> Turf_Reinforcement_Matting | AG8: Bermuda grass | AH8: 6 | AI8: 1
A9: 0.02749 | B9: 25 | C9: 2.749e-05 | D9: 0.0006775155587 | H9: 0.013 | I9: 25 | J9: =0.013/1000 -> 1.3e-05 | K9: 0.0001515153027 | W9: Pavement | X9: 0.02 | AA9: Vegetation | AB9: Bermuda grass | AC9: Straw, no nets | AD9: NAG, SC250; bare soil | AG9: Rye grain | AH9: 3 | AI9: 0.6
A10: 0.01333 | B10: 10 | C10: 1.333e-05 | D10: 0.0001593052513 | H10: 0.005 | I10: 10 | J10: =0.005/1000 -> 5e-06 | K10: 2.241350632e-05 | W10: Smooth, bare packed soil | X10: 0.1 | AA10: Rolled_Erosion_Control_Products | AB10: Rye grain | AC10: Straw, 1 net | AD10: NAG, C350; bare soil | AG10: Hard fescue | AH10: 3 | AI10: 1
A11: 3.999e-05 | B11: 0 | C11: 3.999e-08 | D11: 1.433747262e-09 | H11: 3.999e-05 | I11: 0 | J11: 3.999e-08 | K11: 1.433747262e-09 | W11: Poor grass, cultivated row crops or moderately rough bare surfaces | X11: 0.2 | AA11: Turf_Reinforcement_Matting | AB11: Hard fescue | AC11: Straw, 2 nets | AD11: NAG, P550; bare soil | AG11: Bluegrass | AH11: 5.5 | AI11: 1
F12: Cumulative Removal Efficiency = | G12: =SUM(G6:G11)/100 ->  | M12: Cumulative Removal Efficiency = | N12: =SUM(N6:N11)/100 ->  | W12: Pasture, average grass | X12: 0.4 | AB12: Bluegrass | AC12: Straw (70) and Coir (30) | AD12: Pro/Enka II; bare soil | AG12: Tall fescue | AH12: 5.5 | AI12: 1
B13: Data source: Winston and Hunt DOT data | I13: Data from Rahn, 1996 (Engineering Geology: An Environmental Approach); soil type = Mikovna loess (image here: | W13: Deciduous forest | X13: 0.6 | AB13: Tall fescue | AC13: Excelsio, 2 nets | AD13: Pro/Enka, 7220, BFM, vegetated | AG13: Straw, no nets | AH13: 3 | AI13: 1
N14: http://myweb.cwpost.liu.edu/vdivener/notes/soil_props.htm | W14: Dense grass, coniferous forest, or dec. forest with deep litter | X14: 0.8 | AC14: Polypropylene, 2 nets | AD14: NAG, C350vegetated | AG14: Straw, 1 net | AH14: 3.5 | AI14: 1.25
B15: d50 | C15: =C8 -> 5.071e-05 | I15: d50 | J15: =J8 -> 2.5e-05 | AC15: Coir netting, 900 g | AD15: NAG, P550; vegetated | AG15: Straw, 2 nets | AH15: 4.5 | AI15: 1.5
B16: Interp. D60 | C16: =(((C7-C8)/(B7/B8))*(60-B8))+C8 -> 0.00059031 | I16: Interp. D60 | J16: =(((J7-J8)/(I7/I8))*(60-I8))+J8 -> 0.000225 | AG16: Straw (70) and Coir (30) | AH16: 8 | AI16: 2
B17: UC | C17: =C16/C10 -> 44.28432108 | I17: UC | J17: =J16/J10 -> 45 | AG17: Excelsio, 2 nets | AH17: 8.5 | AI17: 2.3
B18: C,c (d25 for d30) | C18: =(C9^2)/(C10*C16) -> 0.09603713374 | I18: C,c (d25 for d30) | J18: =(J9^2)/(J10*J16) -> 0.1502222222 | AG18: Polypropylene, 2 nets | AH18: 9 | AI18: 3.2
B19: Variable | C19: English Units | E19: Metric Units | AG19: Coir netting, 900 g | AH19: 15 | AI19: 4.6
B20: z | C20: ='Swale Design'!D9 -> 0 | D20: ft/ft | W20: Side slope values | X20: Grass height | AG20: NAG, SC250; bare soil | AH20: 9.5 | AI20: 2.5
B21: wb | C21: ='Swale Design'!D8 -> 0 | D21: ft | E21: =C21*0.3048 -> 0 | F21: m | W21: 3 | X21: 3 | AG21: NAG, C350; bare soil | AH21: 10.5 | AI21: 3
B22: L | C22: ='Swale Design'!D10 -> 0 | D22: ft | E22: =C22*0.3048 -> 0 | F22: m | W22: 4 | X22: 4 | AG22: NAG, P550; bare soil | AH22: 12.5 | AI22: 3.25
B23: S | C23: ='[1]DESIGN INPUTS'!D10 -> 0.075 | D23: ft/ft | G23: LEFT SIDE | H23: =C30*C26*(1/(1.486*SQRT(C23))) ->  | W23: 5 | X23: 5 | AG23: Pro/Enka II; bare soil | AH23: 13 | AI23: 10
B24: G | C24: ='Swale Design'!D12 -> 0 | D24: in | E24: =(C24/12)*0.3048 -> 0 | F24: m | G24: RIGHT SIDE | H24: =((($C$21*$C$31)+($C$20*($C$31^2)))^(5/3))*((($C$21*$C$31)+(2*$C$31*SQRT(($C$20^2)+1)))^(-2/3)) -> 0 | W24: 6 | X24: 6 | AG24: Pro/Enka, 7220, BFM, vegetated | AH24: 14 | AI24: 8
B25: XSec Area | C25: =(((2*C20*C31)+C21)/2)*C31 -> 0 | D25: ft^2 | E25: =C25*0.09290304 -> 0 | F25: m^2 | G25: Squared Error | H25: =(H23-H24)^2 ->  | W25: 7 | AG25: NAG, C350vegetated | AH25: 20 | AI25: 10
B26: n | C26: 0.35 | AG26: NAG, P550; vegetated | AH26: 25 | AI26: 12.5
B27: A | C27: =Hydrology!H7 -> 0 | D27: acres
B28: C | C28: =Hydrology!H8 ->  | W28: A | X28: 1
B29: i | C29: =Hydrology!H9 -> 0 | D29: in/hr | W29: B | X29: 2
B30: Q | C30: =Hydrology!H7*Hydrology!H8*1 ->  | D30: cfs | E30: =C30*28.32 ->  | F30: L/s | G30: <- Based on 1 in/h only | W30: C | X30: 3
B31: y | C31: ='Swale Design'!D18 -> 0.2877850472 | D31: ft | E31: =C31*0.3048 -> 0.08771688237 | F31: m | W31: D | X31: 4
B32: V | E32: =E30/1000/E25 ->  | F32: m/s
B33: μ | C33: 0.001002
B34: g | C34: 9.8
B35: ρs | C35: 2650
B36: ρ | C36: 1000
V37: TESTING CONTINUITY ITERATION VS MANNING'S CALCULATION FOR DESIGN
W39: wb | X39: 2
B40: USDA Classification | C40: Clay/silt line | D40: Silt/VFS line | E40: VFS/FS line | F40: FS/MS line | G40: MS/CS line | H40: CS/VCS line | W40: z | X40: 4
C41: 0.002 | D41: 0.05 | E41: 0.1 | F41: 0.25 | G41: 0.5 | H41: 1 | I41: 0 | W41: S | X41: 0.025
C42: 0.002 | D42: 0.05 | E42: 0.1 | F42: 0.25 | G42: 0.5 | H42: 1 | I42: 100 | W42: n | X42: 0.022
W43: Q | X43: 5.8
V45: flowd | W45: A | X45: v | Y45: WP | Z45: Rh | AA45: v | AB45: Q (manning) | AC45: Q (continuity only)
V46: 0.5 | W46: =V46*0.5*(2*$X$39+2*$X$40*V46) -> 2 | X46: =$X$43/W46 -> 2.9 | Y46: =$X$39+(2*SQRT((V46^2)+($X$40*V46)^2)) -> 6.123105626 | Z46: =W46/Y46 -> 0.3266316347 | AA46: =(1.4859/$X$42)*(Z46^(2/3))*SQRT($X$41) -> 5.064956687 | AB46: =AA46*W46 -> 10.12991337 | AC46: =$X$43/W46 -> 2.9
V47: 0.6 | W47: =V47*0.5*(2*$X$39+2*$X$40*V47) -> 2.64 | X47: =$X$43/W47 -> 2.196969697 | Y47: =$X$39+(2*SQRT((V47^2)+($X$40*V47)^2)) -> 6.947726751 | Z47: =W47/Y47 -> 0.3799804015 | AA47: =(1.4859/$X$42)*(Z47^(2/3))*SQRT($X$41) -> 5.602446325 | AB47: =AA47*W47 -> 14.7904583 | AC47: =$X$43/W47 -> 2.196969697
V48: 0.7 | W48: 3.36 | X48: 1.726190476 | Y48: 7.772347876 | Z48: 0.432301803 | AA48: 6.105598904 | AB48: 20.51481232 | AC48: 1.726190476
V49: 0.8 | W49: 4.16 | X49: 1.394230769 | Y49: 8.596969001 | Z49: 0.4838914738 | AA49: =(1.4859/$X$42)*(Z49^(2/3))*SQRT($X$41) -> 6.582166838 | AB49: 27.38181404 | AC49: 1.394230769
V50: 0.9 | W50: 5.04 | X50: 1.150793651 | Y50: 9.421590126 | Z50: 0.5349415473 | AA50: 7.037327987 | AB50: 35.46813306 | AC50: 1.150793651
V51: 1 | W51: 6 | X51: 0.9666666667 | Y51: 10.24621125 | Z51: 0.5855823048 | AA51: 7.474730451 | AB51: =AA51*W51 -> 44.8483827 | AC51: 0.9666666667
V52: 1.1 | W52: 7.04 | X52: 0.8238636364 | Y52: 11.07083238 | Z52: 0.6359052112 | AA52: 7.897054991 | AB52: 55.59526713 | AC52: 0.8238636364
V53: 1.2 | W53: 8.16 | X53: 0.7107843137 | Y53: 11.8954535 | Z53: 0.685976369 | AA53: 8.30633947 | AB53: 67.77973008 | AC53: 0.7107843137
V54: 1.3 | W54: 9.36 | X54: 0.6196581197 | Y54: 12.72007463 | Z54: 0.7358447395 | AA54: 8.704176706 | AB54: 81.47109397 | AC54: 0.6196581197
V55: 1.4 | W55: 10.64 | X55: 0.545112782 | Y55: 13.54469575 | Z55: 0.7855473608 | AA55: 9.091840791 | AB55: 96.73718602 | AC55: 0.545112782
V56: 1.5 | W56: 12 | X56: 0.4833333333 | Y56: 14.36931688 | Z56: 0.8351127686 | AA56: 9.470370915 | AB56: 113.644451 | AC56: 0.4833333333
V57: 1.6 | W57: 13.44 | X57: 0.431547619 | Y57: 15.193938 | Z57: 0.884563304 | AA57: 9.840628846 | AB57: 132.2580517 | AC57: 0.431547619
V58: 1.7 | W58: 14.96 | X58: 0.3877005348 | Y58: 16.01855913 | Z58: 0.9339167076 | AA58: 10.20333947 | AB58: 152.6419585 | AC58: 0.3877005348
V59: 1.8 | W59: 16.56 | X59: 0.3502415459 | Y59: 16.84318025 | Z59: 0.9831872456 | AA59: 10.55912012 | AB59: 174.8590291 | AC59: 0.3502415459
V60: 1.9 | W60: 18.24 | X60: 0.3179824561 | Y60: 17.66780138 | Z60: 1.032386521 | AA60: 10.9085022 | AB60: 198.97108 | AC60: 0.3179824561
V61: 2 | W61: 20 | X61: 0.29 | Y61: 18.4924225 | Z61: 1.081524067 | AA61: 11.25194753 | AB61: 225.0389507 | AC61: 0.29
V62: 2.1 | W62: 21.84 | X62: 0.2655677656 | Y62: 19.31704363 | Z62: 1.13060779 | AA62: 11.58986085 | AB62: 253.122561 | AC62: 0.2655677656
V63: 2.2 | W63: 23.76 | X63: 0.2441077441 | Y63: 20.14166475 | Z63: 1.179644299 | AA63: 11.92259949 | AB63: 283.2809638 | AC63: 0.2441077441
V64: 2.3 | W64: =V64*0.5*(2*$X$39+2*$X$40*V64) -> 25.76 | X64: 0.2251552795 | Y64: 20.96628588 | Z64: 1.228639166 | AA64: 12.25048106 | AB64: 315.5723921 | AC64: 0.2251552795
V65: 2.4 | W65: 27.84 | X65: 0.2083333333 | Y65: 21.790907 | Z65: 1.277597119 | AA65: 12.57378959 | AB65: 350.0543023 | AC65: 0.2083333333
V66: 2.5 | W66: 30 | X66: 0.1933333333 | Y66: 22.61552813 | Z66: 1.326522194 | AA66: 12.89278044 | AB66: 386.7834131 | AC66: 0.1933333333
V67: 2.6 | W67: 32.24 | X67: 0.1799007444 | Y67: 23.44014925 | Z67: =W67/Y67 -> 1.375417863 | AA67: 13.20768431 | AB67: 425.8157421 | AC67: 0.1799007444
